bitfinex-derivatives/quotes_BTCF0:USTF0_20250709
["timestamp","ask_amount","ask_price","bid_price","bid_amount"]
[1752093095458,1.05822442,111070.0,111060.0,1.1589782]
[1752093095970,1.13864047,111070.0,111060.0,1.2189782]
[1752093096766,0.86282634,111070.0,111060.0,1.2189782]
[1752093096963,1.13864047,111070.0,111060.0,1.2189782]
[1752093097164,1.05822442,111070.0,111060.0,1.2189782]
[1752093097558,0.69742442,111070.0,111060.0,1.2189782]
[1752093097758,1.05822442,111070.0,111060.0,0.5760582]
[1752093097962,1.09050729,111070.0,111060.0,0.5760582]
[1752093099363,1.09050729,111070.0,111060.0,0.5610382]
[1752093099572,0.1800869,111030.0,111020.0,0.08099644]
[1752093099867,0.1801193,111010.0,111000.0,0.31779817]
[1752093100054,0.45593343,111010.0,111000.0,0.30556801]
[1752093100259,0.63433343,111010.0,111000.0,0.12543251]
[1752093100470,0.99513343,111010.0,111000.0,0.14201251]
[1752093100766,0.7193193,111010.0,111000.0,0.12487345]
[1752093101168,0.7193193,111010.0,111000.0,0.78821345]
[1752093101362,0.3585193,111010.0,111000.0,0.96834895]
[1752093101763,0.3585193,111010.0,111000.0,0.78821345]
[1752093102065,0.79075613,111010.0,111000.0,0.79221345]
[1752093102367,0.79175613,111010.0,111000.0,0.97975117]
[1752093102560,0.79075613,111010.0,111000.0,0.98631096]
[1752093102759,0.79075613,111010.0,111000.0,0.80817536]
[1752093102760,0.79175613,111010.0,111000.0,0.80817536]
[1752093102960,0.79175613,111010.0,111000.0,0.79159536]
[1752093103164,0.80676613,111010.0,111000.0,0.80817536]
[1752093103557,0.80676613,111010.0,111000.0,0.16177536]
[1752093103759,1.15201264,111010.0,111000.0,0.98803096]
[1752093103966,1.15201264,111010.0,111000.0,0.80789536]
[1752093104263,1.15201264,111010.0,111000.0,0.98803112]
[1752093104469,1.15201264,111010.0,111000.0,1.00747117]
[1752093104669,1.17561264,111010.0,111000.0,1.00747117]
[1752093105075,1.17561264,111010.0,111000.0,0.36135117]
[1752093105368,0.80676613,111010.0,111000.0,1.02707117]
[1752093105561,0.44596613,111010.0,111000.0,1.02707117]
[1752093106164,0.83036613,111010.0,111000.0,1.02707117]
[1752093106364,1.19426646,111010.0,111000.0,1.02707117]
[1752093106562,0.84901995,111010.0,111000.0,0.38135117]
[1752093106761,1.19426646,111010.0,111000.0,1.02627117]
[1752093106963,1.19426646,111010.0,111000.0,0.38135117]
[1752093107168,1.19426646,111010.0,111000.0,1.02623117]
[1752093107670,1.19426646,111010.0,111000.0,1.03679131]
[1752093107671,0.83346646,111010.0,111000.0,1.03679131]
[1752093108070,0.46461995,111010.0,111000.0,1.28679131]
[1752093108261,0.80986646,111010.0,111000.0,1.03679131]
[1752093108669,0.46461995,111010.0,111000.0,1.03679131]
[1752093108869,0.46461995,111010.0,111000.0,1.04679131]
[1752093109666,0.82541995,111010.0,111000.0,1.04679131]
[1752093109873,1.17066646,111010.0,111000.0,1.04679131]
[1752093110270,1.17066646,111010.0,111000.0,1.27679131]
[1752093110676,0.82541995,111010.0,111000.0,1.27679131]
[1752093110877,1.17066646,111010.0,111000.0,1.13199131]
[1752093111380,1.17066646,111010.0,111000.0,1.13207812]
[1752093111670,0.80986646,111010.0,111000.0,1.13207812]
[1752093112079,0.80986646,111010.0,111000.0,1.33151798]
[1752093112279,0.80986646,111010.0,111000.0,1.13151798]
[1752093112780,0.80986646,111010.0,111000.0,1.14207734]
[1752093113076,0.75498312,111010.0,111000.0,1.39207734]
[1752093113282,0.02065382,111010.0,111000.0,2.2033648]
[1752093113580,0.02065382,111010.0,111000.0,2.2851648]
[1752093115187,0.02065382,111010.0,111000.0,2.2651648]
[1752093115582,0.02065382,111010.0,111000.0,2.2851648]
[1752093115985,0.01894559,111030.0,111020.0,0.1801029]
[1752093116182,0.01894559,111030.0,111020.0,2.27292511]
[1752093116380,0.3608,111040.0,111030.0,0.1800867]
[1752093116591,0.3608,111040.0,111030.0,0.74112524]
[1752093116592,0.5558805,111040.0,111030.0,0.74112524]
[1752093116787,0.1950805,111040.0,111030.0,0.74112524]
[1752093116989,0.1950805,111040.0,111030.0,0.72704597]
[1752093117291,0.5558805,111040.0,111030.0,0.74112189]
[1752093117679,0.67577003,111040.0,111030.0,0.74112189]
[1752093117884,0.76197003,111040.0,111030.0,0.74112189]
[1752093118390,0.67577003,111040.0,111030.0,0.74112189]
[1752093118888,0.67577003,111040.0,111030.0,0.81486999]
[1752093119090,0.79057003,111040.0,111030.0,0.650127]
[1752093119293,1.13581654,111040.0,111030.0,0.63956999]
[1752093119686,1.13581654,111040.0,111030.0,0.62298999]
[1752093119995,0.77501654,111040.0,111030.0,0.62298999]
[1752093120294,0.77501654,111040.0,111030.0,0.65012713]
[1752093120591,0.77501654,111040.0,111030.0,0.63956999]
[1752093120884,1.13581654,111040.0,111030.0,0.36915519]
[1752093121086,2.14308486,111040.0,111030.0,0.02915519]
[1752093121287,1.50016486,111040.0,111030.0,0.02507927]
[1752093121485,2.14308486,111040.0,111030.0,0.02507927]
[1752093122089,2.11079533,111040.0,111030.0,0.02507927]
[1752093122984,1.42030231,111040.0,111030.0,0.02507927]
[1752093123180,2.11079533,111040.0,111030.0,0.04507927]
[1752093123385,2.11079533,111040.0,111030.0,0.05915816]
[1752093123585,2.54091533,111040.0,111030.0,0.04507927]
[1752093123782,0.1801191,111010.0,111000.0,0.29914927]
[1752093123986,0.92477561,111010.0,111000.0,0.76741877]
[1752093124187,1.09387561,111010.0,111000.0,0.45088061]
[1752093124484,1.09387561,111010.0,111000.0,0.43680172]
[1752093124687,1.09387561,111010.0,111000.0,0.41680172]
[1752093125084,1.09387561,111010.0,111000.0,0.42736142]
[1752093125285,1.09487561,111010.0,111000.0,0.43136185]
[1752093125588,1.09487561,111010.0,111000.0,0.60093712]
[1752093125894,1.09487561,111010.0,111000.0,0.61149728]
[1752093126593,1.09487561,111010.0,111000.0,0.34149728]
[1752093126789,1.09487561,111010.0,111000.0,0.37197933]
[1752093126996,1.09487561,111010.0,111000.0,0.35539933]
[1752093127295,0.7486291,111010.0,111000.0,0.35841917]
[1752093127486,0.7486291,111010.0,111000.0,0.34183917]
[1752093127692,0.7486291,111010.0,111000.0,0.3524019]
[1752093127893,0.7486291,111010.0,111000.0,0.3680719]
[1752093128093,1.09387561,111010.0,111000.0,0.3524019]
[1752093128293,1.09387561,111010.0,111000.0,0.3680719]
[1752093128496,1.09387561,111010.0,111000.0,0.44889659]
[1752093128696,1.09487561,111010.0,111000.0,0.44989659]
[1752093128897,1.09487561,111010.0,111000.0,0.3690719]
[1752093129099,1.09487561,111010.0,111000.0,0.25920153]
[1752093129396,1.09387561,111010.0,111000.0,0.35751224]
[1752093129698,1.09487561,111010.0,111000.0,0.34851224]
[1752093130598,1.09487561,111010.0,111000.0,0.42933693]
[1752093131685,1.09487561,111010.0,111000.0,0.24920153]
[1752093131890,1.09487561,111010.0,111000.0,0.23353153]
[1752093132100,1.09487561,111010.0,111000.0,0.15270684]
[1752093132694,1.09487561,111010.0,111000.0,0.13880172]
[1752093133198,1.09487561,111010.0,111000.0,0.07880172]
[1752093134298,1.12714222,111010.0,111000.0,0.07880172]
[1752093134596,1.1271408,111010.0,111000.0,0.07880172]
[1752093134799,1.1271408,111010.0,111000.0,0.10880172]
[1752093135596,0.78189429,111010.0,111000.0,0.10880172]
[1752093135795,1.16575054,111010.0,111000.0,0.12288292]
[1752093136600,0.78189403,111010.0,111000.0,0.12188292]
[1752093136795,1.16611054,111010.0,111000.0,0.12188292]
[1752093137593,1.16711054,111010.0,111000.0,0.12088292]
[1752093137895,1.94253305,111010.0,111000.0,0.02875263]
[1752093138100,1.19936784,111010.0,111000.0,0.02875263]
[1752093138397,1.16711054,111010.0,111000.0,0.37875263]
[1752093138601,1.19936465,111010.0,111000.0,0.17875263]
[1752093138800,1.19936465,111010.0,111000.0,0.18931367]
[1752093139797,1.19936465,111010.0,111000.0,0.06931367]
[1752093139997,1.81823054,111010.0,111000.0,0.06931367]
[1752093140295,1.81815054,111010.0,111000.0,0.06931367]
[1752093140991,1.81815054,111010.0,111000.0,0.05875263]
[1752093141188,1.80200054,111010.0,111000.0,0.05875263]
[1752093141601,1.45675403,111010.0,111000.0,0.05875263]
[1752093141794,1.15096054,111010.0,111000.0,0.05875263]
[1752093141998,1.80228054,111010.0,111000.0,0.23888803]
[1752093142297,1.80228054,111010.0,111000.0,0.25442181]
[1752093142796,1.80228054,111010.0,111000.0,0.05861641]
[1752093143300,1.80228054,111010.0,111000.0,0.06861641]
[1752093143501,1.80228054,111010.0,111000.0,0.26442181]
[1752093143798,1.73140561,111010.0,111000.0,0.26442181]
[1752093143995,1.73140561,111010.0,111000.0,0.35362181]
[1752093144802,1.73140561,111010.0,111000.0,0.38362181]
[1752093145003,1.08008561,111010.0,111000.0,0.38362181]
[1752093145207,1.73192561,111010.0,111000.0,0.38362181]
[1752093145803,1.73192561,111010.0,111000.0,0.20348641]
[1752093146410,1.76413694,111010.0,111000.0,0.20348641]
[1752093146795,1.69512634,111010.0,111000.0,0.20348641]
[1752093147699,0.19902214,111000.0,110990.0,5e-08]
[1752093147897,0.1801515,110990.0,110980.0,0.08082469]
[1752093148107,1.64470741,110990.0,110980.0,0.08082469]
[1752093148306,0.1801678,110980.0,110970.0,0.08082469]
[1752093148496,0.1801678,110980.0,110970.0,0.27179023]
[1752093148497,0.99240371,110980.0,110970.0,0.27179023]
[1752093148697,0.99240371,110980.0,110970.0,0.35289023]
[1752093149104,0.99702639,110980.0,110970.0,0.34232833]
[1752093149305,0.99240371,110980.0,110970.0,0.34232833]
[1752093149502,0.99240371,110980.0,110970.0,0.33759469]
[1752093149703,1.26963962,110980.0,110970.0,0.11]
[1752093150000,0.1802002,110960.0,110950.0,0.00180253]
[1752093150198,2.50719737,110960.0,110950.0,0.31180253]
[1752093150599,2.68649737,110960.0,110950.0,0.24189343]
[1752093150803,2.75592704,110960.0,110950.0,0.21828943]
[1752093151004,2.75592704,110960.0,110950.0,0.06612433]
[1752093151208,0.1802327,110940.0,110930.0,1.7969627]
[1752093151406,2.2270627,110940.0,110930.0,2.0169627]
[1752093151602,1.8501127,110940.0,110930.0,0.5169627]
[1752093151810,1.9397127,110940.0,110930.0,0.5326327]
[1752093152207,2.01196812,110940.0,110930.0,0.42486645]
[1752093152407,2.3576337,110940.0,110930.0,0.42486645]
[1752093152609,2.4483337,110940.0,110930.0,0.223]
[1752093152807,2.4483337,110940.0,110930.0,0.23867]
[1752093153006,2.46751938,110940.0,110930.0,0.23867]
[1752093153206,2.46751938,110940.0,110930.0,0.25867]
[1752093153407,2.46751938,110940.0,110930.0,0.243]
[1752093154005,2.0321538,110940.0,110930.0,0.25867]
[1752093154210,1.9425538,110940.0,110930.0,0.36345]
[1752093154407,1.9425538,110940.0,110930.0,0.44495]
[1752093154603,1.9425538,110940.0,110930.0,0.18207]
[1752093154902,2.28921938,110940.0,110930.0,0.42307]
[1752093155103,0.6344738,110940.0,110930.0,0.626199]
[1752093155302,1.01695938,110940.0,110930.0,0.244]
[1752093155508,1.18685938,110940.0,110930.0,0.153843]
[1752093155709,1.18685938,110940.0,110930.0,0.081]
[1752093155907,1.18685938,110940.0,110930.0,0.001]
[1752093156309,0.180249,110930.0,110920.0,1.52418753]
[1752093156608,0.99026458,110930.0,110920.0,1.68418753]
[1752093157211,0.99026458,110930.0,110920.0,1.57642128]
[1752093157409,0.99026458,110930.0,110920.0,1.75668648]
[1752093157613,0.90286458,110930.0,110920.0,2.01396648]
[1752093157915,0.557199,110930.0,110920.0,2.01396648]
[1752093158110,0.56184149,110930.0,110920.0,2.01396648]
[1752093158306,0.56184149,110930.0,110920.0,2.04396648]
[1752093158612,0.56384149,110930.0,110920.0,2.15373273]
[1752093159312,0.90950707,110930.0,110920.0,2.15373273]
[1752093159714,0.90950707,110930.0,110920.0,2.16724907]
[1752093160015,0.90950707,110930.0,110920.0,2.15724907]
[1752093160510,0.56384149,110930.0,110920.0,2.15724907]
[1752093160712,0.90950707,110930.0,110920.0,2.15724907]
[1752093162314,0.90950707,110930.0,110920.0,1.95410387]
[1752093162510,1.07350707,110930.0,110920.0,1.76193762]
[1752093162921,1.05735707,110930.0,110920.0,1.76193762]
[1752093163621,1.05735707,110930.0,110920.0,1.81193762]
[1752093163818,1.05735707,110930.0,110920.0,1.91970387]
[1752093164424,0.54769149,110930.0,110920.0,2.09996907]
[1752093164622,0.54769149,110930.0,110920.0,1.61960387]
[1752093164823,0.90877707,110930.0,110920.0,1.98960387]
[1752093165117,0.90877707,110930.0,110920.0,1.65960387]
[1752093165320,0.98977707,110930.0,110920.0,1.65960387]
[1752093165714,0.98977707,110930.0,110920.0,1.55183762]
[1752093166218,0.98977707,110930.0,110920.0,1.65960387]
[1752093166418,0.98977707,110930.0,110920.0,1.55183762]
[1752093166717,0.98977707,110930.0,110920.0,1.65960387]
[1752093166916,0.98977707,110930.0,110920.0,1.55183762]
[1752093167115,0.98977707,110930.0,110920.0,1.73210282]
[1752093167312,0.62897707,110930.0,110920.0,1.73210282]
[1752093167516,0.98977707,110930.0,110920.0,1.73210282]
[1752093167718,0.98977707,110930.0,110920.0,1.55183762]
[1752093168109,0.98977707,110930.0,110920.0,1.57665762]
[1752093168715,0.98977707,110930.0,110920.0,1.61665762]
[1752093168915,0.98977707,110930.0,110920.0,1.87665762]
[1752093169112,0.98977707,110930.0,110920.0,1.59665762]
[1752093169310,0.98977707,110930.0,110920.0,1.51675762]
[1752093169512,0.98977707,110930.0,110920.0,1.69702282]
[1752093169912,0.98977707,110930.0,110920.0,1.77771677]
[1752093170111,0.98977707,110930.0,110920.0,1.84851677]
[1752093170316,0.98977707,110930.0,110920.0,1.76782282]
[1752093170921,0.98977707,110930.0,110920.0,1.58755762]
[1752093171126,1.06447707,110930.0,110920.0,1.50675762]
[1752093171321,0.71881149,110930.0,110920.0,1.50675762]
[1752093171627,1.06447707,110930.0,110920.0,1.50675762]
[1752093171827,1.04905707,110930.0,110920.0,1.48193762]
[1752093172021,0.70339149,110930.0,110920.0,1.48193762]
[1752093172221,1.06447707,110930.0,110920.0,1.48196048]
[1752093172423,1.06447707,110930.0,110920.0,1.66222568]
[1752093172424,0.70339149,110930.0,110920.0,1.66222568]
[1752093172720,0.71881149,110930.0,110920.0,1.76999193]
[1752093172921,1.06447707,110930.0,110920.0,1.76999193]
[1752093173121,1.06447707,110930.0,110920.0,1.86999193]
[1752093173717,1.06447707,110930.0,110920.0,1.96999193]
[1752093174114,0.98977707,110930.0,110920.0,1.96999193]
[1752093174321,0.98977707,110930.0,110920.0,1.93742568]
[1752093174730,0.98977707,110930.0,110920.0,1.94742568]
[1752093174921,0.92070634,110930.0,110920.0,1.94742568]
[1752093175121,0.92070634,110930.0,110920.0,1.93388648]
[1752093175629,0.55990634,110930.0,110920.0,1.95870648]
[1752093175827,0.90528634,110930.0,110920.0,1.95870648]
[1752093176021,0.82428634,110930.0,110920.0,1.95870648]
[1752093176528,0.83970634,110930.0,110920.0,1.95870648]
[1752093177030,0.83970634,110930.0,110920.0,1.9721267]
[1752093177330,0.83970634,110930.0,110920.0,2.07989295]
[1752093177629,0.83970634,110930.0,110920.0,1.9721267]
[1752093177821,0.83970634,110930.0,110920.0,2.08008559]
[1752093178229,1.77158119,110930.0,110920.0,0.38505469]
[1752093178425,0.1802977,110900.0,110890.0,0.13499406]
[1752093178617,0.180314,110890.0,110880.0,0.18052367]
[1752093178817,0.88197977,110900.0,110880.0,1.01196407]
[1752093179017,1.15999455,110910.0,110900.0,0.1802977]
[1752093179227,1.52079455,110910.0,110900.0,0.1604691]
[1752093179424,1.52135455,110910.0,110900.0,0.5194868]
[1752093179822,0.5861597,110910.0,110900.0,1.45468165]
[1752093180023,0.86275455,110910.0,110900.0,0.9977891]
[1752093180230,0.5861597,110910.0,110900.0,1.2080868]
[1752093180426,0.5871597,110910.0,110900.0,1.2080868]
[1752093180627,0.5871597,110910.0,110900.0,0.89272]
[1752093181125,0.86375455,110910.0,110900.0,0.23412]
[1752093181329,1.1403494,110910.0,110900.0,0.1939]
[1752093181524,1.2157494,110910.0,110900.0,0.2093]
[1752093181725,1.2946494,110910.0,110900.0,0.2093]
[1752093182122,1.2946494,110910.0,110900.0,0.3443691]
[1752093182524,1.2946494,110910.0,110900.0,0.3143691]
[1752093182730,1.01805455,110910.0,110900.0,0.0254]
[1752093183029,1.2946494,110910.0,110900.0,0.0254]
[1752093183422,1.2946494,110910.0,110900.0,0.1604691]
[1752093183423,0.7414597,110910.0,110900.0,0.1604691]
[1752093183624,1.67689455,110910.0,110900.0,0.1504691]
[1752093183825,1.67689455,110910.0,110900.0,0.1904691]
[1752093184226,1.9534894,110910.0,110900.0,0.0554]
[1752093184724,1.67689455,110910.0,110900.0,0.0454]
[1752093184923,1.67689455,110910.0,110900.0,0.03]
[1752093185122,1.9584894,110910.0,110900.0,0.031]
[1752093185322,1.99392774,110910.0,110900.0,0.031]
[1752093186438,0.78189804,110910.0,110900.0,0.0464]
[1752093186627,1.36155804,110910.0,110900.0,0.1248]
[1752093186827,1.63815289,110910.0,110900.0,0.1248]
[1752093187228,1.99664774,110910.0,110900.0,0.1248]
[1752093187628,1.33808774,110910.0,110900.0,0.1248]
[1752093187829,0.90419289,110910.0,110900.0,0.14962]
[1752093188022,1.28607804,110910.0,110900.0,0.22632]
[1752093188231,1.56267289,110910.0,110900.0,0.4066177]
[1752093189028,0.26679804,110910.0,110900.0,0.68321255]
[1752093189229,0.2313597,110910.0,110900.0,0.68321255]
[1752093189434,0.2313597,110910.0,110900.0,0.4466177]
[1752093190135,0.2313597,110910.0,110900.0,0.72321255]
[1752093190528,0.2313597,110910.0,110900.0,0.4766177]
[1752093190730,0.006,110910.0,110900.0,0.4766177]
[1752093190926,0.1862815,110910.0,110900.0,0.8374177]
[1752093191334,0.1862815,110910.0,110900.0,1.11401255]
[1752093191735,0.1862815,110910.0,110900.0,0.8374177]
[1752093191930,0.1862815,110910.0,110900.0,0.75321255]
[1752093192131,0.006,110910.0,110900.0,0.75321255]
[1752093192324,0.006,110910.0,110900.0,1.56714105]
[1752093192528,0.1862815,110910.0,110900.0,1.56714105]
[1752093192728,0.006,110910.0,110900.0,1.56714105]
[1752093193637,0.1862813,110910.0,110900.0,1.56714105]
[1752093194037,0.006,110910.0,110900.0,1.56714105]
[1752093194230,0.1862813,110910.0,110900.0,1.56714105]
[1752093194426,0.006,110910.0,110900.0,1.56714105]
[1752093194626,0.1862813,110910.0,110900.0,1.02604335]
[1752093194827,0.1862813,110910.0,110900.0,1.20634095]
[1752093195040,0.1862813,110910.0,110900.0,1.17634095]
[1752093195637,0.1862813,110910.0,110900.0,0.99600495]
[1752093196037,0.006,110910.0,110900.0,0.99600495]
[1752093196340,0.1862813,110910.0,110900.0,0.99600495]
[1752093197633,0.1862813,110910.0,110900.0,1.0140101]
[1752093197842,0.1862813,110910.0,110900.0,1.29060495]
[1752093198138,0.1862813,110910.0,110900.0,1.65140495]
[1752093198339,0.006,110910.0,110900.0,1.65140495]
[1752093198732,0.1862813,110910.0,110900.0,1.65140495]
[1752093199041,0.006,110910.0,110900.0,1.65140495]
[1752093199230,0.1862813,110910.0,110900.0,1.65140495]
[1752093199434,0.006,110910.0,110900.0,1.65140495]
[1752093199634,0.006,110910.0,110900.0,1.31140495]
[1752093199834,0.006,110910.0,110900.0,1.29060495]
[1752093200449,0.1862813,110910.0,110900.0,1.29060495]
[1752093201144,0.006,110910.0,110900.0,1.29060495]
[1752093201350,0.006,110910.0,110900.0,1.79060495]
[1752093202345,0.006,110910.0,110900.0,2.15140495]
[1752093202740,0.006,110910.0,110900.0,1.8748101]
[1752093202948,0.006,110910.0,110900.0,2.15140495]
[1752093203242,0.006,110910.0,110900.0,2.57845683]
[1752093203437,0.19945706,110920.0,110910.0,0.7334711]
[1752093203637,0.19945706,110920.0,110910.0,2.22023625]
[1752093204045,0.01919196,110920.0,110910.0,2.22023625]
[1752093204238,0.19945706,110920.0,110910.0,2.22023625]
[1752093204445,0.01919196,110920.0,110910.0,2.22023625]
[1752093204744,0.20445706,110920.0,110910.0,2.3392414]
[1752093204935,0.20445706,110920.0,110910.0,2.61583625]
[1752093205141,0.20545706,110920.0,110910.0,2.61683625]
[1752093205339,0.20545706,110920.0,110910.0,3.11683625]
[1752093206141,0.02519196,110920.0,110910.0,3.11683625]
[1752093206446,0.56625706,110920.0,110910.0,3.11683625]
[1752093206644,0.56625706,110920.0,110910.0,2.65996]
[1752093206841,0.48205191,110920.0,110910.0,2.65996]
[1752093207238,0.48205191,110920.0,110910.0,2.36536]
[1752093207433,0.20545706,110920.0,110910.0,2.36536]
[1752093207638,0.56625706,110920.0,110910.0,2.36536]
[1752093207841,0.56625706,110920.0,110910.0,1.0516]
[1752093208139,0.48205191,110920.0,110910.0,1.20816]
[1752093208344,0.48205191,110920.0,110910.0,1.18816]
[1752093208544,0.84285191,110920.0,110910.0,0.5316]
[1752093208847,0.84285191,110920.0,110910.0,1.18804]
[1752093209146,0.56115191,110920.0,110910.0,1.18804]
[1752093209645,0.56115191,110920.0,110910.0,0.4618814]
[1752093209834,0.56115191,110920.0,110910.0,1.1183214]
[1752093210238,0.64535706,110920.0,110910.0,0.93804]
[1752093210434,0.28455706,110920.0,110910.0,0.93804]
[1752093210644,0.28455706,110920.0,110910.0,0.4318814]
[1752093210846,0.28455706,110920.0,110910.0,1.0883214]
[1752093211441,0.64535706,110920.0,110910.0,1.0883214]
[1752093211939,0.64535706,110920.0,110910.0,0.9078]
[1752093212146,0.64535706,110920.0,110910.0,1.0880814]
[1752093212343,0.28455706,110920.0,110910.0,0.2516]
[1752093212553,0.20545706,110920.0,110910.0,1.0883214]
[1752093212749,0.20545706,110920.0,110910.0,1.36491625]
[1752093213253,0.56625706,110920.0,110910.0,1.0883214]
[1752093213543,0.20545706,110920.0,110910.0,1.30491625]
[1752093213747,0.20545706,110920.0,110910.0,1.49491625]
[1752093214142,0.20545706,110920.0,110910.0,1.30491625]
[1752093214348,0.20545706,110920.0,110910.0,1.52491625]
[1752093214547,0.56625706,110920.0,110910.0,1.2483214]
[1752093214748,1.20365191,110920.0,110910.0,0.5758214]
[1752093214936,1.20365191,110920.0,110910.0,1.2482414]
[1752093215139,0.55455191,110920.0,110910.0,0.3329814]
[1752093215337,0.55455191,110920.0,110910.0,1.0793414]
[1752093215855,0.55455191,110920.0,110910.0,1.1021414]
[1752093216038,0.27795706,110920.0,110910.0,1.1021414]
[1752093216242,0.63875706,110920.0,110910.0,1.1021414]
[1752093216444,0.27795706,110920.0,110910.0,1.1021414]
[1752093216649,0.27795706,110920.0,110910.0,1.37873625]
[1752093217450,0.63875706,110920.0,110910.0,1.37873625]
[1752093217946,0.27795706,110920.0,110910.0,1.37873625]
[1752093218146,0.27795706,110920.0,110910.0,1.35589625]
[1752093218346,0.27795706,110920.0,110910.0,0.72241625]
[1752093218543,0.27795706,110920.0,110910.0,1.39335625]
[1752093218743,0.27795706,110920.0,110910.0,1.38335625]
[1752093218944,0.63875706,110920.0,110910.0,1.38335625]
[1752093219150,0.06155208,110920.0,110910.0,1.73239943]
[1752093219450,0.02519196,110920.0,110910.0,2.39319943]
[1752093219642,0.02519196,110920.0,110910.0,2.11660458]
[1752093219838,0.02519196,110920.0,110910.0,1.75580458]
[1752093220347,0.02519196,110920.0,110910.0,1.38134973]
[1752093220554,0.02519196,110920.0,110910.0,1.68066458]
[1752093220749,0.02519196,110920.0,110910.0,1.40406973]
[1752093220947,0.1862651,110920.0,110910.0,0.6757014]
[1752093221144,0.82365995,110920.0,110910.0,1.3462014]
[1752093221349,0.90375995,110920.0,110910.0,1.1611814]
[1752093221544,1.01572622,110920.0,110910.0,1.1384614]
[1752093221745,0.73613137,110920.0,110910.0,1.1611814]
[1752093223349,0.73613137,110920.0,110910.0,0.5057014]
[1752093223551,0.37533137,110920.0,110910.0,1.1759214]
[1752093223749,0.7548273,110920.0,110910.0,1.1609014]
[1752093223949,0.7548273,110920.0,110910.0,0.4657014]
[1752093224253,0.7548273,110920.0,110910.0,1.1358414]
[1752093224454,0.7548273,110920.0,110910.0,1.41243625]
[1752093224648,0.3182273,110920.0,110910.0,1.41243625]
[1752093225150,0.6790273,110920.0,110910.0,1.41243625]
[1752093225352,0.6790273,110920.0,110910.0,1.40243625]
[1752093226258,0.6790273,110920.0,110910.0,1.1258414]
[1752093226756,0.95562215,110920.0,110910.0,1.1258414]
[1752093226954,0.6790273,110920.0,110910.0,1.1258414]
[1752093227958,0.6790273,110920.0,110910.0,0.4707214]
[1752093228159,0.6790273,110920.0,110910.0,1.1252014]
[1752093228760,0.3182273,110920.0,110910.0,1.1252014]
[1752093228959,0.3182273,110920.0,110910.0,0.4607214]
[1752093229159,0.6790273,110920.0,110910.0,1.39171625]
[1752093229759,0.6790273,110920.0,110910.0,1.38171625]
[1752093230358,0.6790273,110920.0,110910.0,1.1051214]
[1752093230662,0.6790273,110920.0,110910.0,1.38171625]
[1752093230865,0.5989273,110920.0,110910.0,1.38171625]
[1752093232560,0.5989273,110920.0,110910.0,0.72731625]
[1752093232755,0.5989273,110920.0,110910.0,1.38103625]
[1752093233259,0.2381273,110920.0,110910.0,1.54103625]
[1752093233867,0.5989273,110920.0,110910.0,1.54103625]
[1752093234769,0.5989273,110920.0,110910.0,1.37103625]
[1752093235967,0.2381273,110920.0,110910.0,1.37103625]
[1752093236268,0.0578622,110920.0,110910.0,1.9384311]
[1752093236469,0.02169593,110920.0,110910.0,2.3084311]
[1752093236656,0.02169593,110920.0,110910.0,1.99183625]
[1752093236860,0.02169593,110920.0,110910.0,1.7152414]
[1752093237068,0.02169593,110920.0,110910.0,1.99183625]
[1752093237267,0.02169593,110920.0,110910.0,2.06575932]
[1752093238067,0.20196103,110920.0,110910.0,2.06575932]
[1752093238365,0.20196103,110920.0,110910.0,2.04575932]
[1752093238366,0.23792034,110920.0,110910.0,2.04575932]
[1752093238663,0.87531519,110920.0,110910.0,0.6807214]
[1752093238872,0.87531519,110920.0,110910.0,0.4307214]
[1752093239171,0.51451519,110920.0,110910.0,1.0830414]
[1752093239361,0.66171519,110920.0,110910.0,1.0830414]
[1752093239564,1.02250632,110920.0,110910.0,1.0830414]
[1752093239865,0.74591147,110920.0,110910.0,1.0730414]
[1752093241061,0.66170632,110920.0,110910.0,1.0730414]
[1752093242672,0.74591147,110920.0,110910.0,1.0730414]
[1752093243174,0.38511147,110920.0,110910.0,1.0930414]
[1752093243376,0.67131147,110920.0,110910.0,1.0930414]
[1752093243670,0.31051147,110920.0,110910.0,1.0930414]
[1752093243970,0.31051147,110920.0,110910.0,0.9668814]
[1752093244169,0.05764637,110920.0,110910.0,1.25849625]
[1752093244471,0.23791157,110920.0,110910.0,1.41399625]
[1752093244671,0.23791157,110920.0,110910.0,1.37399625]
[1752093244873,0.59871157,110920.0,110910.0,1.37399625]
[1752093245266,0.23791157,110920.0,110910.0,1.37399625]
[1752093245666,0.2378777,110920.0,110910.0,1.37399625]
[1752093245972,0.2378777,110920.0,110910.0,1.0974014]
[1752093246172,0.5986777,110920.0,110910.0,1.37399625]
[1752093246382,0.2378777,110920.0,110910.0,1.37399625]
[1752093246567,0.5986777,110920.0,110910.0,1.37399625]
[1752093246762,0.5986777,110920.0,110910.0,1.37375625]
[1752093248176,0.5986777,110920.0,110910.0,1.0970014]
[1752093248676,0.7504777,110920.0,110910.0,1.0970014]
[1752093248973,1.02707255,110920.0,110910.0,1.0970014]
[1752093249176,1.02707255,110920.0,110910.0,1.0967214]
[1752093249474,0.7504777,110920.0,110910.0,1.0967214]
[1752093249675,0.7504777,110920.0,110910.0,1.1067214]
[1752093249877,0.7504777,110920.0,110910.0,1.3767214]
[1752093250175,0.3896777,110920.0,110910.0,1.3767214]
[1752093250362,0.7504777,110920.0,110910.0,1.3767214]
[1752093250963,0.2378777,110920.0,110910.0,2.01411625]
[1752093251174,0.1832652,110920.0,110910.0,1.65331625]
[1752093251362,0.21918998,110920.0,110910.0,1.65331625]
[1752093251562,0.57998998,110920.0,110910.0,1.65331625]
[1752093252167,0.57998998,110920.0,110910.0,1.3767214]
[1752093252372,0.57998998,110920.0,110910.0,1.65331625]
[1752093253271,0.57998998,110920.0,110910.0,1.66331625]
[1752093253868,0.57998998,110920.0,110910.0,1.95791625]
[1752093254176,0.57998998,110920.0,110910.0,1.0301214]
[1752093254479,0.59862675,110920.0,110910.0,1.6804814]
[1752093254777,0.59862675,110920.0,110910.0,1.6404814]
[1752093255478,0.23782675,110920.0,110910.0,1.6404814]
[1752093255673,0.23782675,110920.0,110910.0,1.91707625]
[1752093256280,0.21918998,110920.0,110910.0,1.91707625]
[1752093256678,0.1832652,110920.0,110910.0,1.91707625]
[1752093256881,0.21918852,110920.0,110910.0,1.91707625]
[1752093257981,0.21918852,110920.0,110910.0,1.62247625]
[1752093258877,0.003,110920.0,110910.0,2.2598711]
[1752093259082,0.003,110920.0,110910.0,1.97327625]
[1752093259576,0.1832652,110920.0,110910.0,1.97327625]
[1752093259784,0.003,110920.0,110910.0,1.97327625]
[1752093260077,0.003,110920.0,110910.0,2.00327625]
[1752093260682,0.003,110920.0,110910.0,2.07405785]
[1752093261471,0.003,110920.0,110910.0,2.3495727]
[1752093261781,0.19941838,110940.0,110930.0,0.180249]
[1752093262081,0.23527765,110940.0,110930.0,1.30604385]
[1752093262379,0.05504495,110940.0,110930.0,2.03854385]
[1752093262885,0.02418568,110940.0,110930.0,2.03954385]
[1752093263276,0.05998503,110940.0,110930.0,2.03954385]
[1752093264782,0.05998503,110940.0,110930.0,1.99954385]